[Event "Liberia Championship 2023"]
[Site "Monrovia"]
[Date "2024.01.21"]
[Round "7.5"]
[White "Daniel Kolliemelen"]
[Black "John Jallah"]
[Result "0-1"]
[ECO "A03"]
[WhiteElo "1809"]
[BlackElo "1761"]
[Annotator "NA RC"]
[PlyCount "82"]
[EventDate "2024.01.16"]
[EventType "swiss"]
[EventCountry "LBR"]
[SourceTitle "playchess.com"]
[Source "ChessBase"]
[SourceQuality "1"]
[TimeControl "40/5400+30:1800+30"]

1. d4 {[%emt 0:47:14]} d5 {[%emt 0:01:03]} 2. f4 {[%emt 0:00:39]} Nf6 {[%emt 0:00:28]} 3. e3 {[%emt 0:00:06]} g6 {[%emt 0:00:50]} 4. Nf3 {[%emt 0:00:11]} Bg7 {[%emt 0:00:43]} 5. Bd3 {[%emt 0:01:35]} c5 {[%emt 0:00:00]} 6. c3 {[%emt 0:00:08]} Nc6 {[%emt 0:00:00]} 7. Nbd2 {[%emt 0:00:59]} c4 {[%emt 0:00:19]} 8. Bc2 O-O 9. O-O {[%emt 0:02:42]} Bf5 {[%emt 0:01:57]} 10. Re1 e6 {[%emt 0:01:43]} 11. h3 {[%emt 0:05:42]} h5 {[%emt 0:03:42]} 12. Ne5 {[%emt 0:05:47]} Rc8 {[%emt 0:04:09]} 13. e4 {[%emt 0:04:06]} Nxe4 {[%emt 0:05:31]} 14. Bxe4 {[%emt 0:01:35]} Bxe4 {[%emt 0:06:14]} 15. Nxe4 {[%emt 0:01:27]} dxe4 {[%emt 0:01:03]} 16. Rxe4 {[%emt 0:00:09]} Qd5 {[%emt 0:03:03]} 17. Re1 {[%emt 0:00:14]} Rfd8 {[%emt 0:01:50]} 18. Qe2 {[%emt 0:01:12]} a6 {[%emt 0:04:01]} 19. Be3 {[%emt 0:01:40]} b5 {[%emt 0:03:14]} 20. Rad1 {[%emt 0:00:44]} a5 {[%emt 0:04:24]} 21. Bc1 {[%emt 0:01:58]} Ne7 {[%emt 0:02:26]} 22. g4 {[%emt 0:00:32]} hxg4 {[%emt 0:01:40]} 23. hxg4 {[%emt 0:01:10]} Bxe5 {[%emt 0:01:04]} 24. fxe5 {[%emt 0:00:41]} Kf8 {[%emt 0:24:57]} 25. Rf1 {[%emt 0:22:29]} Ke8 {[%emt 0:09:27]} 26. Rde1 {[%emt 0:00:00]} Kd7 {[%emt 0:02:08]} 27. Rxf7 {[%emt 0:00:00]} Rh8 {[%emt 0:00:58]} 28. Qg2 {[%emt 0:00:00]} Qxg2+ {[%emt 0:04:39]} 29. Kxg2 {[%emt 0:00:00]} Rcf8 {[%emt 0:01:42]} 30. Rxf8 {[%emt 0:00:00]} Rxf8 {[%emt 0:00:17]} 31. Rh1 {[%emt 0:00:00]} Rf7 {[%emt 0:03:00]} 32. Rh6 {[%emt 0:00:00]} b4 {[%emt 0:01:45]} 33. Bd2 {[%emt 0:00:00]} Nd5 {[%emt 0:02:17]} 34. Rxg6 {[%emt 0:04:30]} Nf4+ {[%emt 0:03:19]} 35. Bxf4 {[%emt 0:00:00]} Rxf4 {[%emt 0:00:10]} 36. Kg3 {[%emt 0:00:00]} Rf1 {[%emt 0:00:34]} 37. Rf6 {[%emt 0:00:00]} Rxf6 {[%emt 0:00:28]} 38. exf6 {[%emt 0:00:00]} a4 {[%emt 0:00:05]} 39. Kf2 {[%emt 0:00:00]} a3 {[%emt 0:00:28]} 40. bxa3 {[%emt 0:00:00]} b3 {[%emt 0:00:00]} 41. axb3 {[%emt 0:02:51]} cxb3 {[%emt 0:01:18]} 0-1

[Event "Liberia Championship 2023"]
[Site "Monrovia"]
[Date "2024.01.21"]
[Round "7.6"]
[White "Alfred J. Kollie"]
[Black "Jacob, Jallah"]
[Result "1-0"]
[ECO "A45"]
[WhiteElo "1612"]
[BlackElo "1781"]
[Annotator "NA RC"]
[PlyCount "73"]
[EventDate "2024.01.16"]
[EventType "swiss"]
[EventCountry "LBR"]
[SourceTitle "playchess.com"]
[Source "ChessBase"]
[SourceQuality "1"]
[TimeControl "40/5400+30:1800+30"]

1. d4 {[%emt 0:00:05]} Nf6 {[%emt 0:00:25]} 2. Bg5 {[%emt 0:00:32]} c5 {[%emt 0:00:59]} 3. d5 {[%emt 0:00:55]} d6 {[%emt 1:30:36]} 4. c4 {[%emt 0:00:18]} Nbd7 {[%emt 0:00:00]} 5. Nc3 {[%emt 0:00:14]} a6 6. Qa4 {[%emt 0:00:46]} g6 7. e4 {[%emt 0:00:43]} Bg7 8. Nf3 {[%emt 1:30:57]} O-O {[%emt 0:00:00]} 9. Bd3 {[%emt 0:00:30]} Ng4 10. O-O {[%emt 0:00:30]} Nde5 {[%emt 0:03:30]} 11. Be2 {[%emt 0:00:30]} Nxf3+ {[%emt 0:00:00]} 12. Bxf3 {[%emt 0:00:30]} Bxc3 {[%emt 0:00:00]} 13. bxc3 {[%emt 0:00:00]} Ne5 {[%emt 0:00:00]} 14. Be2 {[%emt 0:00:00]} Kg7 {[%emt 0:00:00]} 15. f4 {[%emt 0:00:00]} Nd7 {[%emt 0:00:00]} 16. Qc2 {[%emt 0:00:00]} f6 {[%emt 0:00:00]} 17. Bh4 {[%emt 0:00:00]} Qe8 {[%emt 0:00:00]} 18. Bg4 {[%emt 0:03:00]} Qd8 {[%emt 0:00:00]} 19. Rab1 {[%emt 0:00:00]} Rb8 {[%emt 0:00:00]} 20. a4 {[%emt 0:00:00]} Qa5 {[%emt 0:00:00]} 21. Qb3 {[%emt 0:00:00]} h6 {[%emt 0:00:00]} 22. Bg3 {[%emt 0:00:00]} f5 {[%emt 0:00:00]} 23. exf5 {[%emt 0:00:00]} gxf5 {[%emt 0:00:00]} 24. Bf3 {[%emt 0:00:00]} Nf6 {[%emt 0:00:00]} 25. Rfe1 {[%emt 0:00:00]} Rf7 {[%emt 0:00:00]} 26. Bh4 {[%emt 0:00:00]} Bd7 {[%emt 0:00:00]} 27. Bxf6+ {[%emt 0:00:00]} Kxf6 {[%emt 0:00:00]} 28. Ra1 {[%emt 0:00:00]} Qc7 {[%emt 0:00:00]} 29. Qc2 {[%emt 0:00:00]} e6 {[%emt 0:00:00]} 30. Qf2 {[%emt 0:00:00]} exd5 {[%emt 0:00:00]} 31. Qh4+ {[%emt 0:00:00]} Kg7 {[%emt 0:00:00]} 32. Bxd5 {[%emt 0:00:00]} Be8 {[%emt 0:00:55]} 33. Bxf7 {[%emt 0:00:00]} Bxf7 {[%emt 0:00:02]} 34. Re7 {[%emt 0:00:00]} Qa5 {[%emt 0:01:08]} 35. Qg3+ {[%emt 0:00:00]} Kf8 {[%emt 0:01:01]} 36. Rae1 {[%emt 0:00:00]} Qxa4 {[%emt 0:03:28]} 37. Qh3 {[%emt 0:00:00]} 1-0

[Event "Liberia Championship 2023"]
[Site "Monrovia"]
[Date "2024.01.21"]
[Round "7.7"]
[White "Foday W. Kondoh"]
[Black "Martin Dunbar"]
[Result "1-0"]
[ECO "C23"]
[WhiteElo "1785"]
[BlackElo "1709"]
[Annotator "NA RC"]
[PlyCount "115"]
[EventDate "2024.01.16"]
[EventType "swiss"]
[EventCountry "LBR"]
[SourceTitle "playchess.com"]
[Source "ChessBase"]
[SourceQuality "1"]
[TimeControl "40/5400+30:1800+30"]

1. e4 {[%emt 0:00:02]} e5 {[%emt 0:26:38]} 2. Bc4 {[%emt 0:00:10]} Nc6 {[%emt 0:00:25]} 3. c3 {[%emt 0:01:14]} Bc5 {[%emt 0:00:11]} 4. Ne2 {[%emt 0:01:13]} d6 {[%emt 0:00:22]} 5. d4 {[%emt 0:00:18]} exd4 {[%emt 0:00:34]} 6. cxd4 {[%emt 0:00:11]} Bb6 {[%emt 0:00:07]} 7. O-O {[%emt 0:00:51]} Bg4 {[%emt 0:00:25]} 8. f3 {[%emt 0:01:40]} Bh5 {[%emt 0:00:45]} 9. Nbc3 {[%emt 0:00:00]} a6 {[%emt 0:00:32]} 10. Nd5 {[%emt 0:00:12]} Ba7 {[%emt 0:01:09]} 11. Ndf4 {[%emt 0:00:14]} Bg6 {[%emt 0:00:42]} 12. Be3 {[%emt 0:01:35]} Qd7 {[%emt 0:01:09]} 13. a3 {[%emt 0:01:30]} Nf6 {[%emt 0:00:34]} 14. b4 {[%emt 0:00:24]} b5 {[%emt 0:01:13]} 15. Ba2 {[%emt 0:01:07]} Bb6 {[%emt 0:00:44]} 16. Rc1 {[%emt 0:00:45]} O-O {[%emt 0:01:06]} 17. Nxg6 {[%emt 0:00:01]} hxg6 {[%emt 0:02:14]} 18. Nf4 {[%emt 0:00:38]} Ne7 {[%emt 0:06:09]} 19. Qd3 {[%emt 0:02:10]} Rac8 {[%emt 0:02:50]} 20. d5 {[%emt 0:02:46]} Bxe3+ {[%emt 0:01:03]} 21. Qxe3 {[%emt 0:00:12]} Rfe8 {[%emt 0:00:23]} 22. Qf2 {[%emt 0:01:00]} Ra8 {[%emt 0:02:29]} 23. Rc3 {[%emt 0:00:25]} Rec8 {[%emt 0:01:14]} 24. Rfc1 {[%emt 0:00:12]} a5 {[%emt 0:01:29]} 25. bxa5 {[%emt 0:00:25]} Rxa5 {[%emt 0:00:36]} 26. Qb2 {[%emt 0:03:17]} Ne8 {[%emt 0:01:27]} 27. Nd3 {[%emt 0:00:10]} Rca8 {[%emt 0:02:16]} 28. Nb4 {[%emt 0:02:33]} g5 {[%emt 0:03:18]} 29. Bb1 {[%emt 0:07:21]} Ng6 {[%emt 0:04:02]} 30. Nc6 {[%emt 0:00:30]} Ra4 {[%emt 0:01:10]} 31. Bd3 {[%emt 0:02:37]} b4 {[%emt 0:05:56]} 32. Nxb4 {[%emt 0:00:51]} Qe7 {[%emt 0:00:32]} 33. Bb5 {[%emt 0:00:50]} Nf4 {[%emt 0:03:16]} 34. g3 {[%emt 0:05:45]} Ng6 {[%emt 0:02:32]} 35. Bxa4 {[%emt 0:00:55]} Rxa4 {[%emt 0:00:25]} 36. Qe2 {[%emt 0:09:20]} Qf6 {[%emt 0:01:49]} 37. Qe3 {[%emt 0:05:00]} Ne5 {[%emt 0:02:36]} 38. Rf1 {[%emt 0:00:46]} Qg6 {[%emt 0:01:54]} 39. Nc6 {[%emt 0:02:41]} Qf6 {[%emt 0:03:50]} 40. Nxe5 {[%emt 0:00:00]} Qxe5 {[%emt 0:00:00]} 41. Re1 {[%emt 0:10:30]} Kh7 {[%emt 0:02:17]} 42. f4 {[%emt 0:01:30]} gxf4 {[%emt 0:49:07]} 43. gxf4 {[%emt 1:08:09]} Qf6 {[%emt 0:00:00]} 44. Rc2 {[%emt 0:00:00]} Qh6 {[%emt 0:00:00]} 45. Kh1 {[%emt 0:00:00]} Nf6 {[%emt 0:01:30]} 46. Qf3 {[%emt 0:01:30]} Qh4 {[%emt 0:00:00]} 47. Rg1 {[%emt 0:00:00]} Nxe4 {[%emt 0:00:00]} 48. Rcg2 {[%emt 0:00:00]} g6 {[%emt 0:01:30]} 49. f5 {[%emt 0:01:30]} g5 {[%emt 0:00:00]} 50. Rf1 {[%emt 0:00:00]} Nf6 {[%emt 0:00:00]} 51. Qe3 {[%emt 0:00:00]} Nxd5 {[%emt 0:00:00]} 52. Qxg5 {[%emt 0:00:00]} Qxg5 {[%emt 0:00:00]} 53. Rxg5 {[%emt 0:00:00]} Rxa3 {[%emt 0:00:00]} 54. f6 {[%emt 0:00:00]} c6 {[%emt 0:00:00]} 55. Rg7+ {[%emt 0:00:00]} Kh6 {[%emt 0:00:00]} 56. Rxf7 {[%emt 0:00:00]} Kg6 57. Rg7+ Kh6 {[%emt 0:04:30]} 58. f7 {[%emt 0:00:00]} 1-0

[Event "Liberia Championship 2023"]
[Site "Monrovia"]
[Date "2024.01.21"]
[Round "7.8"]
[White "Kennedy Zinnah Kengo"]
[Black "Bobby Ballah"]
[Result "1-0"]
[ECO "B30"]
[WhiteElo "1789"]
[BlackElo "1913"]
[Annotator "RC"]
[PlyCount "72"]
[EventDate "2024.01.16"]
[EventType "swiss"]
[EventCountry "LBR"]
[SourceTitle "playchess.com"]
[Source "ChessBase"]
[SourceQuality "1"]
[TimeControl "40/5400+30:1800+30"]

1. e4 {[%emt 0:12:29]} c5 {[%emt 0:00:09]} 2. Nc3 {[%emt 0:00:31]} Nc6 {[%emt 0:00:28]} 3. Nf3 {[%emt 0:00:38]} g6 {[%emt 0:00:26]} 4. b3 {[%emt 0:02:25]} Bg7 {[%emt 0:01:02]} 5. Bb2 {[%emt 0:00:29]} Nf6 {[%emt 0:00:43]} 6. Nd5 {[%emt 0:00:54]} O-O {[%emt 0:03:37]} 7. Nxf6+ {[%emt 0:00:20]} exf6 {[%emt 0:00:22]} 8. Be2 {[%emt 0:00:11]} Re8 {[%emt 0:01:16]} 9. d3 {[%emt 0:01:21]} f5 {[%emt 0:03:51]} 10. e5 {[%emt 0:02:01]} Nxe5 {[%emt 0:01:01]} 11. Nxe5 {[%emt 0:00:13]} Bxe5 {[%emt 0:01:01]} 12. Bxe5 {[%emt 0:00:14]} Rxe5 {[%emt 0:00:05]} 13. O-O {[%emt 0:04:24]} Qb6 {[%emt 0:00:01]} 14. Qd2 {[%emt 0:00:20]} d5 {[%emt 0:00:55]} 15. Bf3 {[%emt 0:00:37]} d4 {[%emt 0:02:10]} 16. Qf4 {[%emt 0:01:15]} Re8 {[%emt 0:00:54]} 17. Rfe1 {[%emt 0:00:29]} Bd7 {[%emt 0:00:32]} 18. a4 {[%emt 0:00:41]} Bc6 {[%emt 0:05:50]} 19. Bxc6 {[%emt 0:02:48]} Qxc6 {[%emt 0:00:22]} 20. Kf1 {[%emt 0:00:15]} a6 {[%emt 0:01:15]} 21. h4 {[%emt 0:00:21]} h5 {[%emt 0:00:11]} 22. a5 {[%emt 0:01:58]} b5 {[%emt 0:07:56]} 23. Re5 {[%emt 0:04:16]} Rxe5 {[%emt 0:01:08]} 24. Qxe5 {[%emt 0:00:06]} Re8 {[%emt 0:00:12]} 25. Qf4 {[%emt 0:00:19]} Qe6 {[%emt 0:00:19]} 26. Rc1 {[%emt 0:00:46]} Qe2+ {[%emt 0:02:29]} 27. Kg1 {[%emt 0:00:12]} Kg7 {[%emt 0:02:18]} 28. g3 {[%emt 0:00:28]} Re6 {[%emt 0:01:13]} 29. Kg2 {[%emt 0:00:45]} Re3 {[%emt 0:02:43]} 30. b4 {[%emt 0:01:23]} Qd2 {[%emt 0:14:12]} 31. bxc5 {[%emt 0:02:01]} Qxc1 {[%emt 0:00:09]} 32. Qxd4+ {[%emt 0:00:11]} Kh7 {[%emt 0:00:02]} 33. Qxe3 {[%emt 0:01:07]} Qxc2 {[%emt 0:00:13]} 34. Qd4 {[%emt 0:00:21]} Qd2 {[%emt 0:04:27]} 35. c6 {[%emt 0:00:20]} Qxa5 {[%emt 0:07:33]} 36. Qd7 {[%emt 0:00:38]} Qb6 {[%emt 0:00:15]} 1-0

[Event "Liberia Championship 2023"]
[Site "Monrovia"]
[Date "2024.01.21"]
[Round "7.9"]
[White "Miller Moore"]
[Black "Harold Evans"]
[Result "1/2-1/2"]
[ECO "B01"]
[WhiteElo "1677"]
[BlackElo "1735"]
[Annotator "NA RC"]
[PlyCount "132"]
[EventDate "2024.01.16"]
[EventType "swiss"]
[EventCountry "LBR"]
[SourceTitle "playchess.com"]
[Source "ChessBase"]
[SourceQuality "1"]
[TimeControl "40/5400+30:1800+30"]

1. e4 {[%emt 0:00:01]} d5 {[%emt 0:11:37]} 2. exd5 {[%emt 0:01:11]} Qxd5 {[%emt 0:00:22]} 3. Nc3 {[%emt 0:00:09]} Qd6 {[%emt 0:00:44]} 4. Nge2 {[%emt 0:00:48]} Nc6 {[%emt 1:19:47]} 5. d4 {[%emt 0:00:25]} Bg4 {[%emt 0:00:00]} 6. f3 {[%emt 0:01:17]} Bd7 {[%emt 0:00:00]} 7. Bf4 {[%emt 0:01:09]} e5 {[%emt 0:00:00]} 8. dxe5 {[%emt 0:00:38]} Qb4 {[%emt 0:00:00]} 9. Qd2 {[%emt 0:01:28]} O-O-O {[%emt 0:00:00]} 10. O-O-O {[%emt 0:00:41]} Bc5 {[%emt 0:00:00]} 11. Nd5 {[%emt 0:02:24]} Qa4 {[%emt 0:00:00]} 12. Nec3 {[%emt 0:00:17]} Qa5 {[%emt 0:00:00]} 13. Bc4 {[%emt 0:00:52]} Nge7 {[%emt 0:00:00]} 14. Ne4 {[%emt 0:00:40]} Bb4 {[%emt 0:00:00]} 15. c3 {[%emt 0:01:04]} Nxd5 {[%emt 0:00:00]} 16. Qxd5 {[%emt 0:01:20]} Be6 {[%emt 0:00:00]} 17. Qxa5 {[%emt 0:00:23]} Bxa5 {[%emt 0:00:00]} 18. Bxe6+ {[%emt 0:00:12]} fxe6 {[%emt 0:00:00]} 19. Rhe1 {[%emt 0:00:41]} Bb6 {[%emt 0:00:00]} 20. Ng5 {[%emt 0:00:36]} Rde8 {[%emt 0:00:00]} 21. Rd3 {[%emt 0:00:45]} h6 {[%emt 0:00:00]} 22. Ne4 {[%emt 0:00:29]} Rd8 {[%emt 0:00:00]} 23. Red1 Rxd3 24. Rxd3 {[%emt 0:01:25]} Rd8 {[%emt 0:00:00]} 25. Kc2 {[%emt 0:00:28]} Ne7 {[%emt 0:00:00]} 26. Rxd8+ {[%emt 0:00:16]} Kxd8 {[%emt 0:00:00]} 27. c4 {[%emt 0:04:52]} Bd4 {[%emt 0:00:00]} 28. Kd3 {[%emt 0:00:57]} Bxb2 {[%emt 0:00:00]} 29. Nc5 {[%emt 0:00:51]} Ng6 {[%emt 0:00:00]} 30. Ke4 {[%emt 0:00:43]} Ke7 {[%emt 0:00:00]} 31. Nxb7 {[%emt 0:00:19]} Ba3 {[%emt 0:00:00]} 32. Be3 {[%emt 0:00:35]} a6 {[%emt 0:00:00]} 33. Bc5+ {[%emt 0:00:28]} Bxc5 {[%emt 0:00:00]} 34. Nxc5 {[%emt 0:00:12]} a5 {[%emt 0:00:00]} 35. a4 {[%emt 0:00:15]} Nh4 {[%emt 0:00:00]} 36. g3 {[%emt 0:00:20]} Ng2 {[%emt 0:00:00]} 37. Nb3 {[%emt 0:01:00]} Ne1 {[%emt 0:00:00]} 38. Nxa5 {[%emt 0:00:17]} Nc2 {[%emt 0:17:00]} 39. Nb3 {[%emt 0:01:03]} Nb4 {[%emt 0:00:00]} 40. Kd4 {[%emt 0:00:35]} Kd8 {[%emt 0:00:00]} 41. f4 {[%emt 0:00:58]} g6 {[%emt 0:00:00]} 42. Nc5 {[%emt 0:00:43]} Ke7 {[%emt 0:00:00]} 43. a5 {[%emt 0:01:07]} Nc6+ {[%emt 0:00:00]} 44. Kc3 {[%emt 0:01:10]} Nxa5 {[%emt 0:00:00]} 45. Ne4 {[%emt 0:01:34]} Nc6 {[%emt 0:00:00]} 46. Nf6 {[%emt 0:00:59]} Kf7 {[%emt 0:00:00]} 47. c5 {[%emt 0:03:27]} Ne7 {[%emt 0:00:00]} 48. Kc4 {[%emt 0:01:27]} g5 {[%emt 0:00:00]} 49. Kb5 {[%emt 0:02:34]} gxf4 {[%emt 0:00:00]} 50. gxf4 {[%emt 0:00:49]} Kg6 {[%emt 0:00:00]} 51. Ne8 {[%emt 0:01:04]} c6+ {[%emt 0:00:00]} 52. Kb6 {[%emt 0:01:20]} Kf5 {[%emt 0:00:00]} 53. Kc7 {[%emt 0:01:30]} Kxf4 {[%emt 0:00:00]} 54. Kd6 {[%emt 0:00:49]} Ng6 {[%emt 0:00:00]} 55. Ng7 {[%emt 0:01:47]} Nxe5 {[%emt 0:00:00]} 56. Nxe6+ {[%emt 0:00:58]} Ke4 {[%emt 0:00:00]} 57. Nd8 {[%emt 0:00:57]} Nd3 {[%emt 0:00:00]} 58. Nxc6 {[%emt 0:00:53]} h5 {[%emt 0:00:00]} 59. Ne7 {[%emt 0:00:53]} Nxc5 {[%emt 0:00:00]} 60. Kxc5 {[%emt 0:00:47]} Kf3 {[%emt 0:00:00]} 61. h4 {[%emt 0:05:34]} Kg4 {[%emt 0:00:00]} 62. Ng6 {[%emt 0:00:42]} Kf5 {[%emt 0:00:00]} 63. Kd5 {[%emt 0:01:51]} Kxg6 {[%emt 0:00:00]} 64. Ke6 {[%emt 0:01:03]} Kg7 {[%emt 0:00:00]} 65. Kf5 {[%emt 0:00:44]} Kh6 {[%emt 0:00:00]} 66. Kf6 {[%emt 1:25:44]} Kh7 {[%emt 0:00:00]} 1/2-1/2

[Event "Liberia Championship 2023"]
[Site "Monrovia"]
[Date "2024.01.21"]
[Round "7.10"]
[White "Prince Jegbadai"]
[Black "Rudolph Edwards"]
[Result "1-0"]
[ECO "D00"]
[WhiteElo "1627"]
[BlackElo "1630"]
[Annotator "NA RC"]
[PlyCount "71"]
[EventDate "2024.01.16"]
[EventType "swiss"]
[EventCountry "LBR"]
[SourceTitle "playchess.com"]
[Source "ChessBase"]
[SourceQuality "1"]
[TimeControl "40/5400+30:1800+30"]

1. d4 {[%emt 0:00:03]} d5 {[%emt 1:02:08]} 2. Bf4 {[%emt 0:00:30]} Nf6 {[%emt 0:00:39]} 3. e3 {[%emt 0:00:18]} Bf5 {[%emt 0:00:34]} 4. Nc3 {[%emt 0:00:22]} e6 {[%emt 0:00:22]} 5. a3 {[%emt 0:00:08]} a6 {[%emt 0:00:09]} 6. h3 {[%emt 0:00:16]} h6 {[%emt 0:00:00]} 7. Nf3 {[%emt 0:00:16]} Bd6 {[%emt 0:00:20]} 8. Be5 {[%emt 0:00:47]} Nc6 {[%emt 0:00:43]} 9. b4 {[%emt 0:00:47]} b5 {[%emt 0:00:15]} 10. Be2 {[%emt 0:00:20]} O-O {[%emt 0:00:13]} 11. O-O {[%emt 0:01:24]} Rb8 {[%emt 0:00:00]} 12. Bxd6 {[%emt 0:00:35]} Qxd6 {[%emt 0:00:08]} 13. Nh4 {[%emt 0:00:18]} Bh7 {[%emt 0:00:12]} 14. f4 {[%emt 0:00:19]} Ne7 {[%emt 0:00:47]} 15. Nf3 {[%emt 0:00:33]} Nf5 {[%emt 0:00:06]} 16. Qd2 {[%emt 0:00:18]} Ng3 {[%emt 0:00:18]} 17. Rf2 {[%emt 0:00:21]} Nfe4 {[%emt 0:00:19]} 18. Nxe4 {[%emt 0:00:34]} Nxe4 {[%emt 0:00:06]} 19. Qe1 {[%emt 0:00:20]} Nxf2 {[%emt 0:00:04]} 20. Kxf2 {[%emt 1:32:01]} Bxc2 {[%emt 0:33:07]} 21. Qc3 {[%emt 0:00:00]} Be4 {[%emt 0:00:00]} 22. Rc1 {[%emt 0:00:00]} Rfc8 {[%emt 0:00:00]} 23. Ne5 {[%emt 0:00:00]} Rb6 {[%emt 0:00:00]} 24. Bd3 {[%emt 0:00:00]} Qe7 {[%emt 0:00:00]} 25. g3 {[%emt 0:00:00]} g5 {[%emt 0:00:00]} 26. Bxe4 {[%emt 0:00:00]} dxe4 {[%emt 0:00:00]} 27. Ng4 {[%emt 0:00:00]} h5 {[%emt 0:00:00]} 28. Ne5 {[%emt 0:00:00]} Rd6 {[%emt 0:00:00]} 29. Qc2 {[%emt 0:00:00]} f5 {[%emt 0:00:00]} 30. Qe2 {[%emt 0:00:00]} g4 {[%emt 0:00:00]} 31. hxg4 {[%emt 0:00:00]} hxg4 {[%emt 0:00:00]} 32. Rh1 {[%emt 0:00:00]} Kg7 {[%emt 0:00:00]} 33. Nxg4 {[%emt 0:00:00]} Rc6 {[%emt 0:00:00]} 34. Ne5 {[%emt 0:00:00]} Rd6 {[%emt 0:00:00]} 35. Qh5 {[%emt 0:00:00]} Rg8 {[%emt 0:00:00]} 36. Qh6# {[%emt 0:00:00]} 1-0

[Event "Liberia Championship 2023"]
[Site "Monrovia"]
[Date "2024.01.23"]
[Round "8.1"]
[White "John Jallah"]
[Black "Thomas, Saah"]
[Result "0-1"]
[ECO "B54"]
[WhiteElo "1761"]
[BlackElo "1889"]
[Annotator "NA RC"]
[PlyCount "102"]
[EventDate "2024.01.16"]
[EventType "swiss"]
[EventCountry "LBR"]
[SourceTitle "playchess.com"]
[Source "ChessBase"]
[SourceQuality "1"]
[TimeControl "40/5400+30:1800+30"]

1. e4 {[%emt 0:00:06]} c5 {[%emt 0:00:08]} 2. Nf3 {[%emt 0:01:03]} d6 {[%emt 0:00:18]} 3. d4 {[%emt 0:00:40]} cxd4 {[%emt 0:00:01]} 4. Nxd4 {[%emt 0:00:14]} a6 {[%emt 0:00:11]} 5. Nc3 {[%emt 0:00:43]} e5 {[%emt 0:01:13]} 6. Nf3 {[%emt 0:01:34] B54: Sizilianisch (Rauser Anti-Drachen-Variante).} h6 {[%emt 0:00:56]} 7. Bc4 {[%emt 0:00:28]} Nf6 {[%emt 0:00:14]} 8. Nxe5 {[%emt 0:01:08]} dxe5 {[%emt 0:00:53]} 9. Bxf7+ {[%emt 0:01:17]} Ke7 {[%emt 0:00:02]} 10. Bd5 {[%emt 0:01:35]} Nc6 {[%emt 0:00:25]} 11. Be3 {[%emt 0:00:50]} Be6 {[%emt 0:00:22]} 12. O-O {[%emt 0:04:13]} Kf7 {[%emt 0:00:09]} 13. f4 {[%emt 0:00:31]} Qc7 {[%emt 1:32:08]} 14. fxe5 {[%emt 0:12:24]} Qxe5 {[%emt 0:00:00]} 15. Bxc6 {[%emt 0:05:57]} bxc6 {[%emt 0:00:00]} 16. Kh1 {[%emt 0:03:26]} Kg6 {[%emt 0:00:00]} 17. Bd4 {[%emt 0:08:37]} Qh5 {[%emt 0:00:00]} 18. Qd3 {[%emt 0:01:37]} Ng4 {[%emt 0:00:00]} 19. Qg3 {[%emt 0:00:51]} Be7 {[%emt 0:00:00]} 20. Ne2 {[%emt 0:01:45]} Bg5 {[%emt 0:00:00]} 21. Kg1 {[%emt 0:02:59]} Rad8 {[%emt 0:00:00]} 22. h3 {[%emt 0:00:44]} Rxd4 {[%emt 0:00:00]} 23. hxg4 {[%emt 0:00:28]} Qxg4 {[%emt 0:00:00]} 24. Qxg4 {[%emt 0:01:19]} Bxg4 {[%emt 0:00:00]} 25. Nxd4 {[%emt 0:00:43]} Be3+ {[%emt 0:00:00]} 26. Kh2 {[%emt 0:00:30]} Bxd4 {[%emt 0:00:00]} 27. c3 {[%emt 0:00:27]} Be5+ {[%emt 0:00:00]} 28. g3 {[%emt 0:00:29]} h5 {[%emt 0:00:00]} 29. Kg2 {[%emt 0:00:35]} h4 {[%emt 0:00:00]} 30. gxh4 {[%emt 0:00:11]} Rd8 {[%emt 0:00:00]} 31. Rf2 {[%emt 0:04:58]} Rd3 {[%emt 0:00:00]} 32. Rh1 {[%emt 0:12:08]} Bg3 {[%emt 0:00:00]} 33. h5+ {[%emt 0:01:01]} Kg5 {[%emt 0:00:00]} 34. Rf8 {[%emt 0:03:43]} Bd6 {[%emt 0:00:00]} 35. h6 {[%emt 0:03:38]} Rd2+ {[%emt 0:00:00]} 36. Rf2 {[%emt 0:00:20]} Rxf2+ {[%emt 0:00:00]} 37. Kxf2 {[%emt 0:00:13]} gxh6 {[%emt 0:00:00]} 38. Ke3 {[%emt 0:00:29]} Bc5+ {[%emt 0:00:00]} 39. Kd3 {[%emt 0:00:21]} h5 {[%emt 0:00:00]} 40. b4 {[%emt 0:00:00]} Bd6 {[%emt 0:00:00]} 41. Kd4 {[%emt 0:01:58]} Kf4 {[%emt 0:00:00]} 42. a4 {[%emt 0:03:27]} Be5+ {[%emt 0:00:00]} 43. Kd3 {[%emt 0:01:40]} Bf3 {[%emt 0:00:00]} 44. Rf1 {[%emt 0:01:25]} h4 {[%emt 0:00:00]} 45. c4 {[%emt 0:01:17]} h3 {[%emt 0:00:00]} 46. a5 $19 {[%emt 0:04:55]} h2 {[%emt 0:00:00]} 47. b5 {[%emt 0:01:23]} cxb5 {[%emt 0:00:00]} 48. cxb5 {[%emt 0:00:36]} axb5 {[%emt 0:00:00]} 49. a6 {[%emt 0:00:32]} h1=Q {[%emt 0:00:00]} 50. Rxh1 {[%emt 0:00:37]} Bxh1 {[%emt 0:00:00]} 51. a7 {[%emt 0:00:33]} Bxe4+ {[%emt 0:00:00]} 0-1